[Event "Titled Tuesday Blitz November 01 Late 2022"]
[White "Bjelobrk, Igor"]
[Black "Han, Yichen"]
[WhiteFideId "4300726"]
[BlackFideId "1054430"]
[WhiteElo "2335"]
[BlackElo "2323"]
[Result "1-0"]
[Round "11"]
[TimeControl "180+1"]
[Date "2022.11.01"]
[WhiteClock "0:00:21"]
[BlackClock "0:00:08"]

1. Nf3 {[%clk 0:03:00]}  d5 {[%clk 0:02:58]} 2. g3 {[%clk 0:02:58]}  Bg4 {[%clk 0:02:57]} 3. Bg2 {[%clk 0:02:48]}  c6 {[%clk 0:02:57]} 4. c4 {[%clk 0:02:47]}  e6 {[%clk 0:02:54]} 5. cxd5 {[%clk 0:02:43]}  exd5 {[%clk 0:02:53]} 6. O-O {[%clk 0:02:43]}  Nd7 {[%clk 0:02:52]} 7. d3 {[%clk 0:02:38]}  Ngf6 {[%clk 0:02:52]} 8. Nc3 {[%clk 0:02:38]}  Be7 {[%clk 0:02:51]} 9. Qc2 {[%clk 0:02:38]}  O-O {[%clk 0:02:51]} 10. e4 {[%clk 0:02:36]}  Nc5 {[%clk 0:02:43]} 11. Ne5 {[%clk 0:02:35]}  Bh5 {[%clk 0:02:36]} 12. f4 {[%clk 0:02:32]}  dxe4 {[%clk 0:02:18]} 13. dxe4 {[%clk 0:02:31]}  Qd4+ {[%clk 0:02:18]} 14. Kh1 {[%clk 0:02:30]}  Bd6 {[%clk 0:02:14]} 15. Nf3 {[%clk 0:02:14]}  Bxf3 {[%clk 0:02:01]} 16. Bxf3 {[%clk 0:02:12]}  Be7 {[%clk 0:01:58]} 17. e5 {[%clk 0:02:04]}  Nd5 {[%clk 0:01:40]} 18. Nxd5 {[%clk 0:02:03]}  cxd5 {[%clk 0:01:39]} 19. Rd1 {[%clk 0:02:02]}  Qc4 {[%clk 0:01:38]} 20. Qxc4 {[%clk 0:01:53]}  dxc4 {[%clk 0:01:39]} 21. Be3 {[%clk 0:01:53]}  Rad8 {[%clk 0:01:31]} 22. Bxc5 {[%clk 0:01:48]}  Bxc5 {[%clk 0:01:32]} 23. Bxb7 {[%clk 0:01:48]}  Bd4 {[%clk 0:01:27]} 24. Rab1 {[%clk 0:01:43]}  g5 {[%clk 0:01:15]} 25. Kg2 {[%clk 0:01:36]}  Bb6 {[%clk 0:01:05]} 26. Bd5 {[%clk 0:01:31]}  Rc8 {[%clk 0:00:53]} 27. e6 {[%clk 0:01:19]}  c3 {[%clk 0:00:44]} 28. exf7+ {[%clk 0:01:18]}  Kg7 {[%clk 0:00:44]} 29. bxc3 {[%clk 0:01:16]}  gxf4 {[%clk 0:00:39]} 30. c4 {[%clk 0:01:16]}  fxg3 {[%clk 0:00:39]} 31. hxg3 {[%clk 0:01:15]}  Rc7 {[%clk 0:00:36]} 32. Rh1 {[%clk 0:01:11]}  Re7 {[%clk 0:00:35]} 33. Rbe1 {[%clk 0:01:08]}  Bc5 {[%clk 0:00:31]} 34. Rxe7 {[%clk 0:01:06]}  Bxe7 {[%clk 0:00:31]} 35. Rb1 {[%clk 0:01:05]}  Bc5 {[%clk 0:00:29]} 36. Rb7 {[%clk 0:01:05]}  Kf6 {[%clk 0:00:26]} 37. Rb5 {[%clk 0:00:58]}  Bd4 {[%clk 0:00:19]} 38. a4 {[%clk 0:00:57]}  Ke5 {[%clk 0:00:18]} 39. a5 {[%clk 0:00:55]}  Kd6 {[%clk 0:00:16]} 40. Rb7 {[%clk 0:00:53]}  Bc5 {[%clk 0:00:16]} 41. Kf3 {[%clk 0:00:51]}  Ke5 {[%clk 0:00:15]} 42. Kg4 {[%clk 0:00:51]}  Kd4 {[%clk 0:00:14]} 43. Kh5 {[%clk 0:00:50]}  Bd6 {[%clk 0:00:14]} 44. g4 {[%clk 0:00:49]}  Bc5 {[%clk 0:00:12]} 45. Kh6 {[%clk 0:00:49]}  Ke5 {[%clk 0:00:11]} 46. Kxh7 {[%clk 0:00:46]}  Kf4 {[%clk 0:00:12]} 47. Kg7 {[%clk 0:00:45]}  Kxg4 {[%clk 0:00:11]} 48. Rb5 {[%clk 0:00:28]}  Be7 {[%clk 0:00:10]} 49. Be6+ {[%clk 0:00:28]}  Kf4 {[%clk 0:00:09]} 50. Rd5 {[%clk 0:00:26]}  Ke4 {[%clk 0:00:08]} 51. c5 {[%clk 0:00:26]}  Rb8 {[%clk 0:00:08]} 52. c6 {[%clk 0:00:23]}  Bf8+ {[%clk 0:00:09]} 53. Kg6 {[%clk 0:00:23]}  Rb1 {[%clk 0:00:07]} 54. c7 {[%clk 0:00:21]}  Rg1+ {[%clk 0:00:07]} 55. Rg5 {[%clk 0:00:21]}  Rc1 {[%clk 0:00:07]} 56. c8=Q {[%clk 0:00:21]}  Rxc8 {[%clk 0:00:08]} 57. Bxc8 {[%clk 0:00:21]} 1-0


[Site "https://www.chess.com"]

[Event "Titled Tuesday Blitz November 01 Late 2022"]
[White "Brown, Andrew"]
[Black "Mekhitarian, Krikor Sevag"]
[WhiteFideId "3206513"]
[BlackFideId "2107660"]
[WhiteElo "2245"]
[BlackElo "2614"]
[Result "0-1"]
[Round "11"]
[TimeControl "180+1"]
[Date "2022.11.02"]
[WhiteClock "0:00:03"]
[BlackClock "0:00:07"]

1. d4 {[%clk 0:03:00]}  Nf6 {[%clk 0:02:53]} 2. c4 {[%clk 0:03:00]}  g6 {[%clk 0:02:52]} 3. Nc3 {[%clk 0:03:01]}  d5 {[%clk 0:02:52]} 4. cxd5 {[%clk 0:03:00]}  Nxd5 {[%clk 0:02:53]} 5. e4 {[%clk 0:03:00]}  Nxc3 {[%clk 0:02:52]} 6. bxc3 {[%clk 0:03:01]}  Bg7 {[%clk 0:02:48]} 7. Bb5+ {[%clk 0:03:01]}  Nd7 {[%clk 0:02:45]} 8. Ne2 {[%clk 0:03:00]}  O-O {[%clk 0:02:35]} 9. e5 {[%clk 0:02:53]}  a6 {[%clk 0:02:35]} 10. Ba4 {[%clk 0:02:50]}  b5 {[%clk 0:02:29]} 11. Bb3 {[%clk 0:02:50]}  Nb6 {[%clk 0:02:28]} 12. O-O {[%clk 0:02:40]}  c5 {[%clk 0:02:28]} 13. f4 {[%clk 0:02:17]}  Bg4 {[%clk 0:01:51]} 14. h3 {[%clk 0:02:16]}  Bxe2 {[%clk 0:01:50]} 15. Qxe2 {[%clk 0:02:17]}  cxd4 {[%clk 0:01:50]} 16. cxd4 {[%clk 0:02:18]}  Nc4 {[%clk 0:01:42]} 17. Be3 {[%clk 0:01:50]}  Rc8 {[%clk 0:01:34]} 18. a4 {[%clk 0:01:36]}  Qd5 {[%clk 0:01:24]} 19. f5 {[%clk 0:01:13]}  Rfd8 {[%clk 0:01:15]} 20. fxg6 {[%clk 0:00:59]}  hxg6 {[%clk 0:01:12]} 21. axb5 {[%clk 0:00:55]}  axb5 {[%clk 0:01:10]} 22. Qf3 {[%clk 0:00:41]}  Qxf3 {[%clk 0:01:08]} 23. Rxf3 {[%clk 0:00:41]}  e6 {[%clk 0:00:59]} 24. Ra7 {[%clk 0:00:33]}  Nxe3 {[%clk 0:00:54]} 25. Rfxf7 {[%clk 0:00:25]}  Rc1+ {[%clk 0:00:34]} 26. Kf2 {[%clk 0:00:24]}  Bh6 {[%clk 0:00:35]} 27. Bxe6 {[%clk 0:00:21]}  Rf1+ {[%clk 0:00:25]} 28. Ke2 {[%clk 0:00:21]}  Rxf7 {[%clk 0:00:25]} 29. Rxf7 {[%clk 0:00:18]}  Kh8 {[%clk 0:00:18]} 30. Bd7 {[%clk 0:00:10]}  Nd5 {[%clk 0:00:13]} 31. e6 {[%clk 0:00:08]}  Bg5 {[%clk 0:00:13]} 32. g3 {[%clk 0:00:06]}  Kg8 {[%clk 0:00:11]} 33. h4 {[%clk 0:00:05]}  Be7 {[%clk 0:00:11]} 34. Rf1 {[%clk 0:00:03]}  b4 {[%clk 0:00:11]} 35. Kd3 {[%clk 0:00:03]}  Nb6 {[%clk 0:00:09]} 36. Bb5 {[%clk 0:00:01]}  Bc5 {[%clk 0:00:09]} 37. Rf4 {[%clk 0:00:01]}  Nd5 {[%clk 0:00:08]} 38. Rg4 {[%clk 0:00:02]}  Ne7 {[%clk 0:00:07]} 39. Kc4 {[%clk 0:00:02]}  Bd6 {[%clk 0:00:08]} 40. d5 {[%clk 0:00:02]}  Rc8+ {[%clk 0:00:08]} 41. Kd3 {[%clk 0:00:02]}  Kg7 {[%clk 0:00:07]} 42. Kd2 {[%clk 0:00:03]}  Nxd5 {[%clk 0:00:06]} 43. Rd4 {[%clk 0:00:03]}  Rc5 {[%clk 0:00:06]} 44. Bc4 {[%clk 0:00:03]}  Nb6 {[%clk 0:00:07]} 45. Bb3 {[%clk 0:00:02]}  Be7 {[%clk 0:00:07]} 46. Rd7 {[%clk 0:00:03]}  Nxd7 {[%clk 0:00:07]} 47. exd7 {[%clk 0:00:03]}  Rc7 {[%clk 0:00:07]} 0-1


[Site "https://www.chess.com"]

[Event "Titled Tuesday Blitz November 01 Late 2022"]
[White "Buchenau, Frank"]
[Black "Goncalves, Davi Sulzbacher"]
[WhiteFideId "4604350"]
[BlackFideId "2154510"]
[WhiteElo "2157"]
[BlackElo "2182"]
[Result "1-0"]
[Round "11"]
[TimeControl "180+1"]
[Date "2022.11.02"]
[WhiteClock "0:00:05"]
[BlackClock "0:00:06"]

1. e4 {[%clk 0:03:00]}  c6 {[%clk 0:02:59]} 2. Nf3 {[%clk 0:03:00]}  d6 {[%clk 0:02:58]} 3. d4 {[%clk 0:02:58]}  g6 {[%clk 0:02:58]} 4. Nc3 {[%clk 0:02:58]}  Bg7 {[%clk 0:02:59]} 5. Be2 {[%clk 0:02:58]}  Nd7 {[%clk 0:02:59]} 6. O-O {[%clk 0:02:58]}  Ngf6 {[%clk 0:03:00]} 7. a4 {[%clk 0:02:58]}  O-O {[%clk 0:03:00]} 8. a5 {[%clk 0:02:58]}  b6 {[%clk 0:02:58]} 9. axb6 {[%clk 0:02:57]}  Qxb6 {[%clk 0:02:59]} 10. h3 {[%clk 0:02:47]}  Rb8 {[%clk 0:02:49]} 11. Re1 {[%clk 0:02:42]}  c5 {[%clk 0:02:39]} 12. e5 {[%clk 0:02:31]}  Ne8 {[%clk 0:02:25]} 13. Nd5 {[%clk 0:02:27]}  Qd8 {[%clk 0:02:23]} 14. Rxa7 {[%clk 0:02:07]}  cxd4 {[%clk 0:02:16]} 15. Nxd4 {[%clk 0:02:02]}  e6 {[%clk 0:02:06]} 16. Nc6 {[%clk 0:01:57]}  Qh4 {[%clk 0:01:53]} 17. g3 {[%clk 0:01:21]}  Qe4 {[%clk 0:01:35]} 18. Bd3 {[%clk 0:01:12]}  Qxd5 {[%clk 0:01:35]} 19. Ne7+ {[%clk 0:01:12]}  Kh8 {[%clk 0:01:35]} 20. Nxd5 {[%clk 0:01:12]}  exd5 {[%clk 0:01:36]} 21. exd6 {[%clk 0:01:04]}  Rb7 {[%clk 0:01:13]} 22. Rxb7 {[%clk 0:01:00]}  Bxb7 {[%clk 0:01:14]} 23. Bb5 {[%clk 0:00:58]}  Nef6 {[%clk 0:01:08]} 24. Re7 {[%clk 0:00:56]}  Rd8 {[%clk 0:01:06]} 25. Bg5 {[%clk 0:00:52]}  Kg8 {[%clk 0:00:59]} 26. Bxd7 {[%clk 0:00:47]}  Nxd7 {[%clk 0:00:56]} 27. Qe2 {[%clk 0:00:38]}  Bc6 {[%clk 0:00:42]} 28. Rxf7 {[%clk 0:00:33]}  Ra8 {[%clk 0:00:32]} 29. Rxg7+ {[%clk 0:00:27]}  Kxg7 {[%clk 0:00:31]} 30. Qe7+ {[%clk 0:00:27]}  Kh8 {[%clk 0:00:24]} 31. Bh6 {[%clk 0:00:24]}  Rg8 {[%clk 0:00:21]} 32. g4 {[%clk 0:00:18]}  d4 {[%clk 0:00:19]} 33. Kh2 {[%clk 0:00:18]}  g5 {[%clk 0:00:13]} 34. Bxg5 {[%clk 0:00:16]}  Rf8 {[%clk 0:00:12]} 35. f4 {[%clk 0:00:14]}  Kg8 {[%clk 0:00:11]} 36. Kg3 {[%clk 0:00:14]}  Rf7 {[%clk 0:00:11]} 37. Qe8+ {[%clk 0:00:14]}  Rf8 {[%clk 0:00:11]} 38. Qe6+ {[%clk 0:00:13]}  Rf7 {[%clk 0:00:11]} 39. Bh6 {[%clk 0:00:13]}  Nf8 {[%clk 0:00:10]} 40. Qc4 {[%clk 0:00:10]}  Bd7 {[%clk 0:00:10]} 41. Qxd4 {[%clk 0:00:10]}  Ne6 {[%clk 0:00:10]} 42. Qe5 {[%clk 0:00:09]}  Nd8 {[%clk 0:00:08]} 43. f5 {[%clk 0:00:09]}  Nc6 {[%clk 0:00:08]} 44. Qd5 {[%clk 0:00:08]}  Nd8 {[%clk 0:00:07]} 45. c4 {[%clk 0:00:07]}  Bc6 {[%clk 0:00:08]} 46. Qd4 {[%clk 0:00:07]}  Rb7 {[%clk 0:00:08]} 47. c5 {[%clk 0:00:06]}  Rb3+ {[%clk 0:00:07]} 48. Kh4 {[%clk 0:00:05]}  Rb7 {[%clk 0:00:07]} 49. Qf6 {[%clk 0:00:05]}  Rf7 {[%clk 0:00:06]} 50. Qxd8+ {[%clk 0:00:05]} 1-0


[Site "https://www.chess.com"]

[Event "Titled Tuesday Blitz November 01 Late 2022"]
[White "Ernst, Sipke"]
[Black "Diaz Rosas, Julio Cesar"]
[WhiteFideId "1004689"]
[BlackFideId "5105099"]
[WhiteElo "2438"]
[BlackElo "2246"]
[Result "1-0"]
[Round "11"]
[TimeControl "180+1"]
[Date "2022.11.02"]
[WhiteClock "0:00:02"]
[BlackClock "0:00:01"]

1. d4 {[%clk 0:03:00]}  Nf6 {[%clk 0:02:47]} 2. h4 {[%clk 0:02:54]}  d5 {[%clk 0:02:26]} 3. h5 {[%clk 0:02:50]}  h6 {[%clk 0:02:23]} 4. Nf3 {[%clk 0:02:45]}  c5 {[%clk 0:02:18]} 5. c3 {[%clk 0:02:44]}  Nc6 {[%clk 0:02:18]} 6. e3 {[%clk 0:02:41]}  Bg4 {[%clk 0:02:16]} 7. Be2 {[%clk 0:02:37]}  Bxh5 {[%clk 0:02:12]} 8. Ne5 {[%clk 0:02:36]}  Bxe2 {[%clk 0:02:09]} 9. Qxe2 {[%clk 0:02:36]}  Rc8 {[%clk 0:02:05]} 10. Nd2 {[%clk 0:02:33]}  e6 {[%clk 0:02:00]} 11. f4 {[%clk 0:02:33]}  Qb6 {[%clk 0:01:55]} 12. g4 {[%clk 0:02:30]}  Nxe5 {[%clk 0:01:40]} 13. dxe5 {[%clk 0:02:28]}  Ne4 {[%clk 0:01:38]} 14. Nxe4 {[%clk 0:02:24]}  dxe4 {[%clk 0:01:37]} 15. Qc4 {[%clk 0:02:24]}  Qc6 {[%clk 0:01:34]} 16. a4 {[%clk 0:02:18]}  a6 {[%clk 0:01:32]} 17. b3 {[%clk 0:02:09]}  Rd8 {[%clk 0:01:28]} 18. a5 {[%clk 0:02:02]}  Be7 {[%clk 0:01:12]} 19. Ra4 {[%clk 0:01:41]}  Qd5 {[%clk 0:01:00]} 20. O-O {[%clk 0:01:40]}  Qxc4 {[%clk 0:00:55]} 21. Rxc4 {[%clk 0:01:39]}  Rd3 {[%clk 0:00:54]} 22. Kf2 {[%clk 0:01:25]}  O-O {[%clk 0:00:50]} 23. Ke2 {[%clk 0:01:18]}  Rfd8 {[%clk 0:00:43]} 24. Rh1 {[%clk 0:00:54]}  R8d5 {[%clk 0:00:20]} 25. Rf1 {[%clk 0:00:34]}  f5 {[%clk 0:00:19]} 26. exf6 {[%clk 0:00:33]}  Bxf6 {[%clk 0:00:19]} 27. Rxe4 {[%clk 0:00:33]}  Rxc3 {[%clk 0:00:19]} 28. Rxe6 {[%clk 0:00:32]}  Rxb3 {[%clk 0:00:17]} 29. Rd1 {[%clk 0:00:22]}  Rxd1 {[%clk 0:00:16]} 30. Kxd1 {[%clk 0:00:20]}  c4 {[%clk 0:00:15]} 31. e4 {[%clk 0:00:19]}  Bc3 {[%clk 0:00:12]} 32. Re8+ {[%clk 0:00:18]}  Kh7 {[%clk 0:00:11]} 33. f5 {[%clk 0:00:17]}  Bxa5 {[%clk 0:00:11]} 34. e5 {[%clk 0:00:17]}  Rd3+ {[%clk 0:00:10]} 35. Ke2 {[%clk 0:00:16]}  Rd4 {[%clk 0:00:10]} 36. Kf3 {[%clk 0:00:12]}  c3 {[%clk 0:00:10]} 37. e6 {[%clk 0:00:12]}  Bb4 {[%clk 0:00:10]} 38. Rc8 {[%clk 0:00:11]}  Rd1 {[%clk 0:00:07]} 39. Be3 {[%clk 0:00:11]}  Rf1+ {[%clk 0:00:07]} 40. Ke4 {[%clk 0:00:11]}  Re1 {[%clk 0:00:07]} 41. Kd3 {[%clk 0:00:10]}  a5 {[%clk 0:00:07]} 42. Bd4 {[%clk 0:00:10]}  Rd1+ {[%clk 0:00:07]} 43. Ke4 {[%clk 0:00:09]}  Re1+ {[%clk 0:00:06]} 44. Kd5 {[%clk 0:00:10]}  a4 {[%clk 0:00:06]} 45. Rc7 {[%clk 0:00:10]}  b5 {[%clk 0:00:06]} 46. Rxg7+ {[%clk 0:00:10]}  Kh8 {[%clk 0:00:06]} 47. Rb7+ {[%clk 0:00:08]}  Kg8 {[%clk 0:00:06]} 48. Rb8+ {[%clk 0:00:08]}  Bf8 {[%clk 0:00:05]} 49. f6 {[%clk 0:00:07]}  c2 {[%clk 0:00:04]} 50. e7 {[%clk 0:00:05]}  Kh7 {[%clk 0:00:01]} 51. exf8=Q {[%clk 0:00:02]} 1-0


[Site "https://www.chess.com"]

[Event "Titled Tuesday Blitz November 01 Late 2022"]
[White "Grot, Blazej"]
[Black "Kirillov, Dmitry"]
[WhiteFideId "21835845"]
[BlackFideId "34180572"]
[WhiteElo "1739"]
[BlackElo "2095"]
[Result "0-1"]
[Round "11"]
[TimeControl "180+1"]
[Date "2022.11.02"]
[WhiteClock "0:00:01"]
[BlackClock "0:00:05"]

1. e4 {[%clk 0:03:00]}  c6 {[%clk 0:02:59]} 2. Nc3 {[%clk 0:03:00]}  d5 {[%clk 0:03:00]} 3. Qe2 {[%clk 0:03:00]}  d4 {[%clk 0:02:58]} 4. Nd1 {[%clk 0:03:00]}  c5 {[%clk 0:02:58]} 5. d3 {[%clk 0:02:59]}  e5 {[%clk 0:02:57]} 6. g3 {[%clk 0:02:59]}  Nc6 {[%clk 0:02:57]} 7. Bg2 {[%clk 0:02:59]}  Bd6 {[%clk 0:02:57]} 8. f4 {[%clk 0:02:59]}  Nge7 {[%clk 0:02:56]} 9. Nf3 {[%clk 0:02:59]}  Bd7 {[%clk 0:02:52]} 10. O-O {[%clk 0:02:58]}  f6 {[%clk 0:02:51]} 11. Nf2 {[%clk 0:02:58]}  Qc7 {[%clk 0:02:50]} 12. fxe5 {[%clk 0:02:54]}  Nxe5 {[%clk 0:02:49]} 13. Nxe5 {[%clk 0:02:54]}  Bxe5 {[%clk 0:02:50]} 14. Ng4 {[%clk 0:02:48]}  Bd6 {[%clk 0:02:45]} 15. Bf4 {[%clk 0:02:08]}  h5 {[%clk 0:02:19]} 16. e5 {[%clk 0:01:40]}  fxe5 {[%clk 0:02:12]} 17. Nxe5 {[%clk 0:01:38]}  O-O-O {[%clk 0:01:57]} 18. Nf7 {[%clk 0:01:34]}  Bxf4 {[%clk 0:01:53]} 19. Rxf4 {[%clk 0:01:34]}  Ng6 {[%clk 0:01:44]} 20. Rff1 {[%clk 0:01:20]}  Rde8 {[%clk 0:01:39]} 21. Be4 {[%clk 0:01:11]}  Bg4 {[%clk 0:01:10]} 22. Qd2 {[%clk 0:01:01]}  Rxe4 {[%clk 0:00:48]} 23. dxe4 {[%clk 0:00:53]}  Re8 {[%clk 0:00:44]} 24. Qg5 {[%clk 0:00:47]}  Re6 {[%clk 0:00:25]} 25. Rae1 {[%clk 0:00:24]}  b6 {[%clk 0:00:25]} 26. e5 {[%clk 0:00:23]}  Bh3 {[%clk 0:00:20]} 27. Nd6+ {[%clk 0:00:23]}  Kb8 {[%clk 0:00:15]} 28. Qxg6 {[%clk 0:00:12]}  Rxg6 {[%clk 0:00:05]} 29. Rf8+ {[%clk 0:00:12]}  Bc8 {[%clk 0:00:06]} 30. Rxc8+ {[%clk 0:00:08]}  Qxc8 {[%clk 0:00:07]} 31. Nxc8 {[%clk 0:00:09]}  Kxc8 {[%clk 0:00:07]} 32. Kf2 {[%clk 0:00:09]}  Kd7 {[%clk 0:00:08]} 33. Kf3 {[%clk 0:00:10]}  Ke6 {[%clk 0:00:08]} 34. Ke4 {[%clk 0:00:10]}  Rg4+ {[%clk 0:00:08]} 35. Kf3 {[%clk 0:00:09]}  Rg5 {[%clk 0:00:08]} 36. h3 {[%clk 0:00:05]}  Rxe5 {[%clk 0:00:08]} 37. Rxe5+ {[%clk 0:00:03]}  Kxe5 {[%clk 0:00:09]} 38. g4 {[%clk 0:00:03]}  h4 {[%clk 0:00:05]} 39. b3 {[%clk 0:00:02]}  g5 {[%clk 0:00:05]} 40. a3 {[%clk 0:00:01]}  b5 {[%clk 0:00:05]} 0-1


[Site "https://www.chess.com"]

[Event "Titled Tuesday Blitz November 01 Late 2022"]
[White "Hjartarson, Johann"]
[Black "Pace, Christopher"]
[WhiteFideId "2300044"]
[BlackFideId "2610167"]
[WhiteElo "2458"]
[BlackElo "2318"]
[Result "1-0"]
[Round "11"]
[TimeControl "180+1"]
[Date "2022.11.02"]
[WhiteClock "0:01:12"]
[BlackClock "0:00:16"]

1. d4 {[%clk 0:03:00]}  Nf6 {[%clk 0:02:56]} 2. c4 {[%clk 0:03:00]}  g6 {[%clk 0:02:54]} 3. Nc3 {[%clk 0:02:59]}  d5 {[%clk 0:02:53]} 4. Nf3 {[%clk 0:02:58]}  Bg7 {[%clk 0:02:52]} 5. Bf4 {[%clk 0:02:57]}  c6 {[%clk 0:02:47]} 6. e3 {[%clk 0:02:55]}  O-O {[%clk 0:02:47]} 7. h3 {[%clk 0:02:55]}  dxc4 {[%clk 0:02:38]} 8. Bxc4 {[%clk 0:02:54]}  Nd5 {[%clk 0:02:38]} 9. Bg3 {[%clk 0:02:50]}  Nxc3 {[%clk 0:02:30]} 10. bxc3 {[%clk 0:02:49]}  Qa5 {[%clk 0:02:30]} 11. O-O {[%clk 0:02:44]}  Qxc3 {[%clk 0:02:29]} 12. Rc1 {[%clk 0:02:43]}  Qa5 {[%clk 0:02:29]} 13. Ne5 {[%clk 0:02:38]}  Nd7 {[%clk 0:02:26]} 14. Nxf7 {[%clk 0:02:34]}  Rxf7 {[%clk 0:02:26]} 15. Qb3 {[%clk 0:02:33]}  Qf5 {[%clk 0:02:14]} 16. e4 {[%clk 0:02:23]}  Qf6 {[%clk 0:02:12]} 17. e5 {[%clk 0:02:20]}  Qf5 {[%clk 0:02:03]} 18. Be6 {[%clk 0:02:05]}  Nc5 {[%clk 0:02:02]} 19. Bxf7+ {[%clk 0:02:05]}  Qxf7 {[%clk 0:02:02]} 20. Qxf7+ {[%clk 0:02:03]}  Kxf7 {[%clk 0:02:02]} 21. Rxc5 {[%clk 0:02:01]}  Be6 {[%clk 0:02:02]} 22. Rb1 {[%clk 0:01:57]}  Bxa2 {[%clk 0:01:25]} 23. Rxb7 {[%clk 0:01:56]}  Bd5 {[%clk 0:01:25]} 24. Ra5 {[%clk 0:01:50]}  a6 {[%clk 0:01:26]} 25. Rb6 {[%clk 0:01:45]}  Ke6 {[%clk 0:01:13]} 26. Raxa6 {[%clk 0:01:43]}  Rd8 {[%clk 0:00:59]} 27. Ra7 {[%clk 0:01:40]}  g5 {[%clk 0:00:39]} 28. f3 {[%clk 0:01:35]}  h5 {[%clk 0:00:36]} 29. Bf2 {[%clk 0:01:33]}  Bf8 {[%clk 0:00:32]} 30. Be3 {[%clk 0:01:31]}  Kf5 {[%clk 0:00:32]} 31. g4+ {[%clk 0:01:27]}  Kg6 {[%clk 0:00:32]} 32. Kf2 {[%clk 0:01:25]}  hxg4 {[%clk 0:00:31]} 33. hxg4 {[%clk 0:01:24]}  Kh6 {[%clk 0:00:18]} 34. Kg3 {[%clk 0:01:23]}  Kg6 {[%clk 0:00:18]} 35. Rc7 {[%clk 0:01:21]}  Re8 {[%clk 0:00:15]} 36. Rcxc6+ {[%clk 0:01:18]}  Bxc6 {[%clk 0:00:15]} 37. Rxc6+ {[%clk 0:01:18]}  e6 {[%clk 0:00:16]} 38. d5 {[%clk 0:01:18]}  Kf7 {[%clk 0:00:16]} 39. d6 {[%clk 0:01:15]}  Ra8 {[%clk 0:00:16]} 40. Bxg5 {[%clk 0:01:14]}  Bg7 {[%clk 0:00:16]} 41. f4 {[%clk 0:01:12]}  Ra3+ {[%clk 0:00:16]} 42. Kh4 {[%clk 0:01:12]} 1-0


[Site "https://www.chess.com"]

[Event "Titled Tuesday Blitz November 01 Late 2022"]
[White "Hoffmann, Asa"]
[Black "Santos Flores, Alberto"]
[WhiteFideId "2001470"]
[BlackFideId "3601234"]
[WhiteElo "2117"]
[BlackElo "2235"]
[Result "1/2-1/2"]
[Round "11"]
[TimeControl "180+1"]
[Date "2022.11.02"]
[WhiteClock "0:00:32"]
[BlackClock "0:00:37"]

1. d4 {[%clk 0:02:58]}  d5 {[%clk 0:02:59]} 2. Bg5 {[%clk 0:02:52]}  Bf5 {[%clk 0:02:57]} 3. e3 {[%clk 0:02:51]}  Nd7 {[%clk 0:02:56]} 4. c4 {[%clk 0:02:51]}  c6 {[%clk 0:02:55]} 5. Nc3 {[%clk 0:02:51]}  Ngf6 {[%clk 0:02:53]} 6. Qb3 {[%clk 0:02:50]}  Qb6 {[%clk 0:02:51]} 7. c5 {[%clk 0:02:50]}  Qxb3 {[%clk 0:02:50]} 8. axb3 {[%clk 0:02:50]}  a6 {[%clk 0:02:51]} 9. b4 {[%clk 0:02:49]}  Rc8 {[%clk 0:02:50]} 10. Nf3 {[%clk 0:02:45]}  h6 {[%clk 0:02:46]} 11. Bh4 {[%clk 0:02:43]}  g5 {[%clk 0:02:46]} 12. Bg3 {[%clk 0:02:43]}  Nh5 {[%clk 0:02:46]} 13. Be2 {[%clk 0:02:34]}  Nxg3 {[%clk 0:02:39]} 14. hxg3 {[%clk 0:02:33]}  Bg7 {[%clk 0:02:39]} 15. Kd2 {[%clk 0:02:33]}  e5 {[%clk 0:02:37]} 16. Rad1 {[%clk 0:01:59]}  Bg6 {[%clk 0:02:24]} 17. g4 {[%clk 0:01:58]}  f5 {[%clk 0:02:07]} 18. gxf5 {[%clk 0:01:49]}  Bxf5 {[%clk 0:02:08]} 19. Kc1 {[%clk 0:01:48]}  Kf7 {[%clk 0:02:05]} 20. g3 {[%clk 0:01:43]}  Kg6 {[%clk 0:02:03]} 21. Nh2 {[%clk 0:01:42]}  Rce8 {[%clk 0:02:00]} 22. Bg4 {[%clk 0:01:41]}  exd4 {[%clk 0:01:58]} 23. exd4 {[%clk 0:01:40]}  Nf6 {[%clk 0:01:56]} 24. Bxf5+ {[%clk 0:01:39]}  Kxf5 {[%clk 0:01:57]} 25. Nf3 {[%clk 0:01:38]}  Ne4 {[%clk 0:01:57]} 26. Nxe4 {[%clk 0:01:34]}  Rxe4 {[%clk 0:01:58]} 27. Rde1 {[%clk 0:01:28]}  Rhe8 {[%clk 0:01:54]} 28. Kd2 {[%clk 0:01:16]}  Rxe1 {[%clk 0:01:47]} 29. Nxe1 {[%clk 0:01:12]}  Bxd4 {[%clk 0:01:38]} 30. Rxh6 {[%clk 0:01:09]}  Bxf2 {[%clk 0:01:37]} 31. Nd3 {[%clk 0:01:03]}  Bxg3 {[%clk 0:01:37]} 32. Rh7 {[%clk 0:01:03]}  Bf4+ {[%clk 0:01:27]} 33. Kd1 {[%clk 0:01:01]}  Ke4 {[%clk 0:01:24]} 34. Kc2 {[%clk 0:00:58]}  Rb8 {[%clk 0:01:17]} 35. Rf7 {[%clk 0:00:52]}  Be3 {[%clk 0:01:13]} 36. Re7+ {[%clk 0:00:49]}  Kf3 {[%clk 0:01:11]} 37. Ne5+ {[%clk 0:00:47]}  Kg3 {[%clk 0:01:00]} 38. Nxc6 {[%clk 0:00:42]}  bxc6 {[%clk 0:00:59]} 39. Rxe3+ {[%clk 0:00:41]}  Kf2 {[%clk 0:00:58]} 40. Re6 {[%clk 0:00:41]}  Rxb4 {[%clk 0:00:55]} 41. Rxc6 {[%clk 0:00:41]}  g4 {[%clk 0:00:53]} 42. b3 {[%clk 0:00:39]}  g3 {[%clk 0:00:50]} 43. Rf6+ {[%clk 0:00:38]}  Kg1 {[%clk 0:00:45]} 44. Rg6 {[%clk 0:00:38]}  g2 {[%clk 0:00:46]} 45. c6 {[%clk 0:00:38]}  Rb8 {[%clk 0:00:42]} 46. Kc3 {[%clk 0:00:36]}  Rf8 {[%clk 0:00:39]} 47. Kd4 {[%clk 0:00:36]}  Kf1 {[%clk 0:00:40]} 48. Kxd5 {[%clk 0:00:35]}  g1=Q {[%clk 0:00:39]} 49. Rxg1+ {[%clk 0:00:34]}  Kxg1 {[%clk 0:00:40]} 50. c7 {[%clk 0:00:34]}  Kf2 {[%clk 0:00:39]} 51. Kd6 {[%clk 0:00:33]}  Ke3 {[%clk 0:00:39]} 52. Kd7 {[%clk 0:00:34]}  Kd4 {[%clk 0:00:38]} 53. c8=Q {[%clk 0:00:33]}  Rxc8 {[%clk 0:00:38]} 54. Kxc8 {[%clk 0:00:33]}  a5 {[%clk 0:00:38]} 55. Kb7 {[%clk 0:00:33]}  Kc3 {[%clk 0:00:38]} 56. Kb6 {[%clk 0:00:32]}  Kxb3 {[%clk 0:00:37]} 57. Kxa5 {[%clk 0:00:32]} 1/2-1/2


[Site "https://www.chess.com"]